fUST/lending_fUST_20240829
["ID","MTS","AMOUNT","RATE_DAILY","PERIOD"]
[336481125,1724871032943,-500.0,0.00019335,2]
[336481126,1724871032953,-500.0,0.00019335,2]
[336481127,1724871032963,-500.0,0.00019335,2]
[336481128,1724871032973,-500.0,0.00019335,2]
[336481129,1724871032983,-500.0,0.00019335,2]
[336481130,1724871032993,-481.49,0.00019335,2]
[336481131,1724871033003,-3673.36,0.00019335,2]
[336481132,1724871033013,-504.60504157,0.00019336,2]
[336481133,1724871033023,-500.0,0.00019336,2]
[336481134,1724871033033,-500.0,0.00019336,2]
[336481135,1724871033043,-500.0,0.00019336,2]
[336481136,1724871033052,-500.0,0.00019336,2]
[336481137,1724871033063,-500.0,0.00019336,2]
[336481138,1724871033072,-500.0,0.00019336,2]
[336481139,1724871033082,-500.0,0.00019336,2]
[336481140,1724871033093,-500.0,0.00019336,2]
[336481141,1724871033103,-500.0,0.00019336,2]
[336481142,1724871033113,-500.0,0.00019336,2]
[336481143,1724871033123,-500.0,0.00019336,2]
[336481144,1724871033132,-500.0,0.00019336,2]
[336481145,1724871033141,-500.0,0.00019336,2]
[336481146,1724871033151,-500.0,0.00019336,2]
[336481147,1724871033161,-500.0,0.00019336,2]
[336481148,1724871033171,-500.0,0.00019336,2]
[336481149,1724871033181,-500.0,0.00019336,2]
[336481150,1724871033192,-500.0,0.00019336,2]
[336481151,1724871033201,-500.0,0.00019336,2]
[336481152,1724871033212,-500.0,0.00019336,2]
[336481153,1724871033221,-500.0,0.00019336,2]
[336481154,1724871033231,-500.0,0.00019336,2]
[336481155,1724871033241,-807.89,0.00019336,2]
[336481156,1724871033251,-500.0,0.00019336,2]
[336481157,1724871033261,-500.0,0.00019336,2]
[336481158,1724871033272,-525.34,0.00019336,2]
[336481159,1724871033284,-500.0,0.00019336,2]
[336481160,1724871033293,-500.0,0.00019336,2]
[336481161,1724871033302,-500.0,0.00019336,2]
[336481162,1724871033313,-500.0,0.00019336,2]
[336481163,1724871033323,-500.0,0.00019336,2]
[336481164,1724871033332,-500.0,0.00019336,2]
[336481165,1724871033343,-500.0,0.00019336,2]
[336481166,1724871033352,-500.0,0.00019336,2]
[336481167,1724871033363,-500.0,0.00019336,2]
[336481168,1724871033373,-500.0,0.00019336,2]
[336481169,1724871033382,-500.0,0.00019336,2]
[336481170,1724871033393,-500.0,0.00019336,2]
[336481171,1724871033403,-500.0,0.00019336,2]
[336481172,1724871033412,-500.0,0.00019336,2]
[336481173,1724871033423,-500.0,0.00019336,2]
[336481174,1724871033433,-500.0,0.00019336,2]
[336481175,1724871033443,-500.0,0.00019336,2]
[336481176,1724871033453,-500.0,0.00019336,2]
[336481177,1724871033463,-500.0,0.00019336,2]
[336481178,1724871033473,-649.27,0.00019336,2]
[336481179,1724871033483,-566.8,0.00019336,2]
[336481180,1724871033492,-500.0,0.00019336,2]
[336481181,1724871033502,-500.0,0.00019336,2]
[336481182,1724871033512,-500.0,0.00019336,2]
[336481183,1724871033522,-500.0,0.00019336,2]
[336481184,1724871033533,-737.24,0.00019336,2]
[336481185,1724871033543,-500.0,0.00019336,2]
[336481186,1724871033553,-500.0,0.00019336,2]
[336481187,1724871033562,-571.49,0.00019336,2]
[336481188,1724871033572,-500.0,0.00019336,2]
[336481189,1724871033582,-500.0,0.00019336,2]
[336481190,1724871033592,-500.0,0.00019336,2]
[336481191,1724871033602,-500.0,0.00019336,2]
[336481192,1724871033612,-922.58,0.00019336,2]
[336481193,1724871033622,-500.0,0.00019337,2]
[336481194,1724871033631,-500.0,0.00019337,2]
[336481195,1724871033642,-503.79,0.00019337,2]
[336481196,1724871033651,-500.0,0.00019337,2]
[336481197,1724871033661,-500.0,0.00019337,2]
[336481198,1724871033671,-500.0,0.00019337,2]
[336481199,1724871033680,-500.0,0.00019337,2]
[336481200,1724871033690,-177.22569844,0.00019337,2]
[336481201,1724871033700,-500.0,0.00019337,2]
[336481202,1724871033714,-500.0,0.00019337,2]
[336481203,1724871033724,-500.0,0.00019337,2]
[336481204,1724871033734,-500.0,0.00019337,2]
[336481205,1724871033743,-500.0,0.00019337,2]
[336481206,1724871033754,-500.0,0.00019337,2]
[336481207,1724871033764,-500.0,0.00019337,2]
[336481208,1724871033774,-500.0,0.00019337,2]
[336481209,1724871033784,-500.0,0.00019337,2]
[336481210,1724871033794,-194.46357098,0.00019342,2]
[336481211,1724871033821,-305.92642902,0.00019342,2]
[336481212,1724871033830,-500.0,0.00019342,2]
[336481213,1724871033841,-427.4603213,0.00019342,2]
[336481214,1724871033851,-157.81792968,0.00019342,2]
[336481215,1724871033865,-342.18207032,0.00019342,2]
[336481216,1724871033875,-500.0,0.00019342,2]
[336481217,1724871033886,-326.78751324,0.00019342,2]
[336481235,1724871038584,-173.21248676,0.00019342,2]
[336481236,1724871038597,-500.0,0.00019342,2]
[336481237,1724871038607,-500.0,0.00019342,2]
[336481238,1724871038617,-577.12,0.00019342,2]
[336481239,1724871038627,-536.44280733,0.00019342,2]
[336481240,1724871038637,-229.42470591,0.00019342,2]
[336481255,1724871040512,-500.0,0.00019334,2]
[336481256,1724871040522,-500.0,0.00019336,2]
[336481257,1724871040532,-270.57529409,0.00019342,2]
[336481258,1724871040542,-564.39,0.00019343,2]
[336481259,1724871040552,-125.21088981,0.00019343,2]
[336481260,1724871040573,-374.78911019,0.00019343,2]
[336481261,1724871040583,-500.0,0.00019343,2]
[336481262,1724871040592,-496.13859529,0.00019343,2]
[336481263,1724871040606,-500.0,0.00019343,2]
[336481264,1724871040615,-500.0,0.00019343,2]
[336481265,1724871040625,-645.45,0.00019343,2]
[336481266,1724871040635,-500.0,0.00019343,2]
[336481267,1724871040646,-500.0,0.00019343,2]
[336481268,1724871040657,-500.0,0.00019343,2]
[336481269,1724871040668,-500.0,0.00019343,2]
[336481270,1724871040678,-500.0,0.00019343,2]
[336481271,1724871040689,-500.0,0.00019343,2]
[336481272,1724871040699,-500.0,0.00019343,2]
[336481273,1724871040708,-500.0,0.00019343,2]
[336481274,1724871040718,-500.0,0.00019343,2]
[336481275,1724871040727,-500.0,0.00019343,2]
[336481276,1724871040737,-500.0,0.00019343,2]
[336481277,1724871040747,-500.0,0.00019343,2]
[336481278,1724871040757,-500.0,0.00019343,2]
[336481279,1724871040767,-500.0,0.00019343,2]
[336481280,1724871040776,-500.0,0.00019343,2]
[336481281,1724871040786,-500.0,0.00019343,2]
[336481282,1724871040796,-500.0,0.00019343,2]
[336481283,1724871040807,-500.0,0.00019343,2]
[336481284,1724871040816,-500.0,0.00019343,2]
[336481285,1724871040825,-500.0,0.00019343,2]
[336481286,1724871040835,-500.0,0.00019343,2]
[336481287,1724871040846,-500.0,0.00019343,2]
[336481288,1724871040855,-500.0,0.00019343,2]
[336481289,1724871040864,-500.0,0.00019343,2]
[336481290,1724871040875,-500.0,0.00019343,2]
[336481291,1724871040885,-500.0,0.00019343,2]
[336481292,1724871040895,-500.0,0.00019343,2]
[336481293,1724871040905,-500.0,0.00019343,2]
[336481294,1724871040915,-500.0,0.00019343,2]
[336481295,1724871040926,-500.0,0.00019343,2]
[336481296,1724871040937,-500.0,0.00019343,2]
[336481297,1724871040947,-500.0,0.00019343,2]
[336481298,1724871040959,-212.79548541,0.00019343,2]
[336481299,1724871040973,-500.0,0.00019343,2]
[336481300,1724871040982,-500.0,0.00019343,2]
[336481301,1724871040992,-500.0,0.00019343,2]
[336481302,1724871041001,-636.6,0.00019343,2]
[336481303,1724871041011,-500.0,0.00019343,2]
[336481304,1724871041021,-346.84005603,0.00019343,2]
[336481326,1724871043490,-548.62,0.00019335,2]
[336481327,1724871043502,-153.15994397,0.00019343,2]
[336481328,1724871043512,-736.6,0.00019343,2]
[336481329,1724871043523,-500.0,0.00019343,2]
[336481330,1724871043534,-500.0,0.00019343,2]
[336481331,1724871043543,-500.0,0.00019343,2]
[336481332,1724871043553,-500.0,0.00019343,2]
[336481333,1724871043564,-500.0,0.00019343,2]
[336481334,1724871043574,-500.0,0.00019343,2]
[336481335,1724871043584,-500.0,0.00019343,2]
[336481336,1724871043593,-44.08610413,0.00019343,2]
[336481353,1724871044729,-294.83,0.00019343,2]
[336481361,1724871046261,-161.08389587,0.00019343,2]
[336481362,1724871046271,-500.0,0.00019343,2]
[336481364,1724871046287,-582.31,0.00019343,2]
[336481365,1724871046297,-312.94582543,0.00019343,2]
[336481367,1724871046307,-433.30456367,0.00019343,2]
[336481368,1724871046316,-500.0,0.00019343,2]
[336481369,1724871046327,-500.0,0.00019343,2]
[336481370,1724871046336,-526.59,0.00019343,2]
[336481371,1724871046347,-500.0,0.00019343,2]
[336481372,1724871046370,-500.0,0.00019343,2]
[336481373,1724871046379,-500.0,0.00019343,2]
[336481374,1724871046389,-500.0,0.00019343,2]
[336481375,1724871046399,-500.0,0.00019343,2]
[336481376,1724871046408,-500.0,0.00019343,2]
[336481377,1724871046417,-500.0,0.00019343,2]
[336481378,1724871046429,-500.0,0.00019343,2]
[336481379,1724871046440,-616.15,0.00019343,2]
[336481380,1724871046450,-500.0,0.00019343,2]
[336481381,1724871046461,-585.28,0.00019343,2]
[336481382,1724871046470,-643.89,0.00019343,2]
[336481383,1724871046480,-616.7,0.00019343,2]
[336481384,1724871046650,-500.0,0.00019343,2]
[336481385,1724871046660,-500.0,0.00019343,2]
[336481386,1724871046670,-707.3,0.00019343,2]
[336481387,1724871046680,-593.21,0.00019343,2]
[336481388,1724871046690,-500.0,0.00019343,2]
[336481389,1724871046700,-500.0,0.00019343,2]
[336481390,1724871046709,-500.0,0.00019343,2]
[336481391,1724871046719,-500.0,0.00019343,2]
[336481392,1724871046729,-500.0,0.00019343,2]
[336481393,1724871046739,-500.0,0.00019345,2]
[336481394,1724871046750,-500.0,0.00019345,2]
[336481395,1724871046759,-500.0,0.00019345,2]
[336481396,1724871046768,-500.0,0.00019345,2]
[336481397,1724871046778,-500.0,0.00019345,2]
[336481398,1724871046788,-500.0,0.00019345,2]
[336481399,1724871046797,-500.0,0.00019345,2]
[336481400,1724871046807,-500.0,0.00019345,2]
[336481401,1724871046816,-500.0,0.00019345,2]
[336481402,1724871046825,-500.0,0.00019345,2]
[336481403,1724871046835,-500.0,0.00019345,2]
[336481404,1724871046845,-503.23,0.00019345,2]
[336481405,1724871046856,-537.66,0.00019345,2]
[336481406,1724871046865,-500.0,0.00019345,2]
[336481407,1724871046876,-500.0,0.00019345,2]
[336481408,1724871046886,-500.0,0.00019345,2]
[336481409,1724871046896,-500.0,0.00019345,2]
[336481410,1724871046906,-500.0,0.00019345,2]
[336481411,1724871046915,-500.0,0.00019345,2]
[336481412,1724871046924,-500.0,0.00019345,2]
[336481413,1724871046934,-500.0,0.00019345,2]
[336481414,1724871046945,-500.0,0.00019345,2]
[336481415,1724871046956,-500.0,0.00019345,2]
[336481416,1724871046967,-550.84,0.00019345,2]
[336481417,1724871046977,-500.0,0.00019345,2]
[336481418,1724871046988,-719.36,0.00019345,2]
[336481419,1724871046997,-500.0,0.00019345,2]
[336481420,1724871047007,-591.05,0.00019345,2]
[336481421,1724871047018,-500.0,0.00019345,2]
[336481422,1724871047028,-500.0,0.00019345,2]
[336481423,1724871047038,-500.0,0.00019345,2]
[336481424,1724871047047,-500.0,0.00019345,2]
[336481425,1724871047056,-500.0,0.00019345,2]
[336481426,1724871047066,-500.0,0.00019345,2]
[336481427,1724871047076,-500.0,0.00019345,2]
[336481428,1724871047086,-613.11,0.00019345,2]
[336481429,1724871047095,-588.2002617,0.00019345,2]
[336481430,1724871047107,-500.0,0.00019345,2]
[336481431,1724871047117,-500.0,0.00019345,2]
[336481432,1724871047127,-500.0,0.00019345,2]
[336481433,1724871047137,-500.0,0.00019345,2]
[336481434,1724871047147,-620.32,0.00019345,2]
[336481435,1724871047156,-500.0,0.00019345,2]
[336481436,1724871047166,-500.0,0.00019345,2]
[336481437,1724871047176,-297.76240184,0.00019345,2]
[336481438,1724871047186,-500.0,0.00019345,2]
[336481439,1724871047196,-546.7,0.00019345,2]
[336481440,1724871047206,-500.0,0.00019345,2]
[336481441,1724871047216,-598.55293161,0.00019345,2]
[336481442,1724871047226,-500.0,0.00019345,2]
[336481443,1724871047236,-512.49,0.00019345,2]
[336481444,1724871047246,-445.10685567,0.00019345,2]
[336481445,1724871047255,-500.0,0.00019345,2]
[336481446,1724871047265,-500.0,0.00019345,2]
[336481447,1724871047275,-500.0,0.00019345,2]
[336481448,1724871047287,-500.0,0.00019345,2]
[336481449,1724871047297,-500.0,0.00019345,2]
[336481450,1724871047306,-500.0,0.00019345,2]
[336481451,1724871047315,-500.0,0.00019345,2]
[336481452,1724871047326,-500.0,0.00019345,2]
[336481453,1724871047335,-500.0,0.00019345,2]
[336481454,1724871047344,-500.0,0.00019345,2]
[336481455,1724871047358,-500.0,0.00019345,2]
[336481456,1724871047368,-500.0,0.00019345,2]
[336481457,1724871047378,-500.0,0.00019345,2]
[336481458,1724871047388,-566.39,0.00019345,2]
[336481459,1724871047397,-500.0,0.00019345,2]
[336481460,1724871047407,-580.33,0.00019345,2]
[336481461,1724871047416,-500.0,0.00019345,2]
[336481462,1724871047425,-500.0,0.00019346,2]
[336481463,1724871047435,-410.98337729,0.00019346,2]
[336481464,1724871047445,-500.0,0.00019346,2]
[336481465,1724871047455,-506.3810475,0.00019346,2]
[336481466,1724871047464,-500.0,0.00019346,2]
[336481467,1724871047473,-513.95,0.00019346,2]
[336481468,1724871047483,-500.0,0.00019346,2]
[336481469,1724871047492,-500.0,0.00019346,2]
[336481470,1724871047502,-500.0,0.00019346,2]
[336481471,1724871047512,-500.0,0.00019346,2]
[336481472,1724871047521,-500.0,0.00019346,2]
[336481473,1724871047531,-500.0,0.00019346,2]
[336481474,1724871047540,-500.0,0.00019346,2]
[336481475,1724871047550,-500.0,0.00019346,2]
[336481476,1724871047559,-500.0,0.00019346,2]
[336481477,1724871047569,-600.02,0.00019346,2]
[336481478,1724871047578,-500.0,0.00019346,2]
[336481479,1724871047588,-500.0,0.00019346,2]
[336481480,1724871047598,-500.0,0.00019346,2]
[336481481,1724871047609,-500.0,0.00019346,2]
[336481482,1724871047619,-500.0,0.00019346,2]
[336481483,1724871047628,-500.0,0.00019346,2]
[336481484,1724871047638,-500.0,0.00019346,2]
[336481485,1724871047648,-670.7,0.00019346,2]
[336481486,1724871047657,-181.47134222,0.00019346,2]
[336481487,1724871047667,-500.0,0.00019346,2]
[336481488,1724871047677,-500.0,0.00019346,2]
[336481489,1724871047686,-500.0,0.00019346,2]
[336481490,1724871047696,-500.0,0.00019346,2]
[336481491,1724871047706,-500.0,0.00019346,2]
[336481492,1724871047716,-500.0,0.00019346,2]
[336481493,1724871047726,-500.0,0.00019346,2]
[336481494,1724871047736,-500.0,0.00019346,2]
[336481495,1724871047748,-500.0,0.00019346,2]
[336481496,1724871047759,-635.15,0.00019346,2]
[336481497,1724871047769,-500.0,0.00019346,2]
[336481498,1724871047779,-500.0,0.00019346,2]
[336481499,1724871047788,-512.69,0.00019346,2]
[336481500,1724871047798,-500.0,0.00019346,2]
[336481501,1724871047808,-500.0,0.00019346,2]
[336481502,1724871047817,-500.0,0.00019346,2]
[336481503,1724871047826,-500.0,0.00019346,2]
[336481504,1724871047835,-500.0,0.00019346,2]
[336481505,1724871047846,-500.0,0.0001947,2]
[336481506,1724871047860,-34988.7639707,0.00019509,2]
[336481507,1724871047869,-875.122939,0.00019509,2]
[336481508,1724871047880,-875.122939,0.00019509,2]
[336481509,1724871047890,-151.0,0.00019509,2]
[336481510,1724871047900,-317.368003,0.00019509,2]
[336481511,1724871047909,-167.27401865,0.00019518,2]
[336481512,1724871047919,-88888.0,0.00019519,2]
[336481513,1724871047928,-339.102673,0.00019519,2]
[336481514,1724871047937,-339.102673,0.00019519,2]
[336481515,1724871047947,-467.548976,0.00019519,2]
[336481516,1724871047957,-467.548976,0.00019519,2]
[336481517,1724871047967,-151.0,0.00019519,2]
[336481518,1724871047975,-151.0,0.00019519,2]
[336481519,1724871047984,-875.122939,0.00019519,2]
[336481520,1724871047994,-413.235991,0.00019519,2]
[336481521,1724871048003,-875.122939,0.00019519,2]
[336481522,1724871048013,-413.235991,0.00019519,2]
[336481523,1724871048023,-151.0,0.00019519,2]
[336481524,1724871048032,-317.368003,0.00019519,2]
[336481525,1724871048041,-160.91,0.000196,2]
[336481526,1724871048051,-17494.3819854,0.000196,2]
[336481527,1724871048061,-156.202967,0.00019606,2]
[336481528,1724871048071,-156.202967,0.00019606,2]
[336481529,1724871048080,-342.192013,0.00019606,2]
[336481530,1724871048090,-229.176454,0.00019606,2]
[336481531,1724871048101,-342.192013,0.00019606,2]
[336481532,1724871048114,-229.176454,0.00019606,2]
[336481533,1724871048124,-151.0,0.00019606,2]
[336481534,1724871048134,-229.060423,0.00019606,2]
[336481535,1724871048143,-229.060423,0.00019606,2]
[336481536,1724871048153,-182.010638,0.00019606,2]
[336481537,1724871048163,-182.010638,0.00019606,2]
[336481538,1724871048172,-151.0,0.00019606,2]
[336481539,1724871048182,-17494.3819854,0.00019607,2]
[336481540,1724871048192,-500.0,0.00019607,2]
[336481541,1724871048201,-774.77,0.00019607,2]
[336481542,1724871048211,-500.0,0.00019607,2]
[336481543,1724871048220,-500.0,0.00019607,2]
[336481544,1724871048230,-500.0,0.00019607,2]
[336481545,1724871048240,-500.0,0.00019608,2]
[336481546,1724871048249,-500.0,0.00019608,2]
[336481547,1724871048258,-500.0,0.00019608,2]
[336481548,1724871048267,-500.0,0.00019608,2]
[336481549,1724871048281,-764.48,0.00019608,2]
[336481550,1724871048290,-575.02,0.00019608,2]
[336481551,1724871048300,-324.01,0.00019608,2]
[336481552,1724871048309,-500.0,0.00019608,2]
[336481553,1724871048318,-500.0,0.00019608,2]
[336481554,1724871048328,-1814.43,0.00019608,2]
[336481555,1724871048337,-500.0,0.00019608,2]
[336481556,1724871048346,-500.0,0.00019608,2]
[336481557,1724871048360,-642.33,0.00019609,2]
[336481558,1724871048370,-500.0,0.00019609,2]
[336481559,1724871048379,-500.0,0.00019609,2]
[336481560,1724871048389,-677.38,0.00019609,2]
[336481561,1724871048399,-500.0,0.00019609,2]
[336481562,1724871048409,-500.0,0.00019609,2]
[336481563,1724871048420,-500.0,0.00019609,2]
[336481564,1724871048431,-500.0,0.00019609,2]
[336481565,1724871048441,-3673.36,0.00019609,2]
[336481566,1724871048450,-536.03,0.0001961,2]
[336481567,1724871048461,-500.0,0.0001961,2]
[336481568,1724871048472,-275.94,0.0001961,2]
[336481569,1724871048482,-500.0,0.0001961,2]
[336481570,1724871048491,-500.0,0.0001961,2]
[336481571,1724871048501,-500.0,0.0001961,2]
[336481572,1724871048510,-500.0,0.0001961,2]
[336481573,1724871048519,-500.0,0.0001961,2]
[336481574,1724871048529,-500.0,0.0001961,2]
[336481575,1724871048538,-500.0,0.0001961,2]
[336481576,1724871048548,-500.0,0.0001961,2]
[336481577,1724871048558,-570.0,0.0001961,2]
[336481578,1724871048569,-500.0,0.0001961,2]
[336481579,1724871048579,-500.0,0.0001961,2]
[336481580,1724871048589,-165.15,0.0001961,2]
[336481581,1724871048599,-500.0,0.0001961,2]
[336481582,1724871048611,-500.0,0.0001961,2]
[336481583,1724871048621,-807.89,0.0001961,2]
[336481584,1724871048631,-500.0,0.0001961,2]
[336481585,1724871048640,-500.0,0.0001961,2]
[336481586,1724871048650,-500.0,0.0001961,2]
[336481587,1724871048660,-253.140405,0.0001961,2]
[336481588,1724871048669,-17494.3819854,0.0001961,2]
[336481589,1724871048679,-500.0,0.0001961,2]
[336481590,1724871048689,-500.0,0.0001961,2]
[336481591,1724871048698,-339.102673,0.0001961,2]
[336481592,1724871048708,-160.97,0.0001961,2]
[336481593,1724871048717,-339.102673,0.0001961,2]
[336481594,1724871048726,-500.0,0.0001961,2]
[336481595,1724871048736,-500.0,0.0001961,2]
[336481596,1724871048746,-500.0,0.0001961,2]
[336481597,1724871048756,-199.53,0.0001961,2]
[336481598,1724871048766,-467.548976,0.0001961,2]
[336481599,1724871048776,-467.548976,0.0001961,2]
[336481600,1724871048786,-500.0,0.0001961,2]
[336481601,1724871048796,-151.0,0.0001961,2]
[336481602,1724871048805,-500.0,0.0001961,2]
[336481603,1724871048814,-500.0,0.0001961,2]
[336481604,1724871048824,-500.0,0.0001961,2]
[336481605,1724871048834,-154.8,0.0001961,2]
[336481606,1724871048843,-500.0,0.0001961,2]
[336481607,1724871048853,-737.24,0.0001961,2]
[336481608,1724871048863,-170.15,0.0001961,2]
[336481609,1724871048872,-500.0,0.0001961,2]
[336481610,1724871048883,-500.0,0.0001961,2]
[336481611,1724871048893,-875.122939,0.0001961,2]
[336481612,1724871048902,-413.235991,0.0001961,2]
[336481613,1724871048912,-875.122939,0.0001961,2]
[336481614,1724871048921,-922.58,0.0001961,2]
[336481615,1724871048931,-413.235991,0.0001961,2]
[336481616,1724871048940,-151.0,0.0001961,2]
[336481617,1724871048950,-500.0,0.00019611,2]
[336481618,1724871048959,-500.0,0.00019611,2]
[336481619,1724871048969,-503.79,0.00019611,2]
[336481620,1724871048978,-500.0,0.00019611,2]
[336481621,1724871048988,-500.0,0.00019611,2]
[336481622,1724871048997,-500.0,0.00019611,2]
[336481623,1724871049006,-500.0,0.00019611,2]
[336481624,1724871049017,-500.0,0.00019611,2]
[336481625,1724871049027,-500.0,0.00019611,2]
[336481626,1724871049037,-500.0,0.00019611,2]
[336481627,1724871049046,-568.22,0.00019611,2]
[336481628,1724871049056,-628.88,0.00019611,2]
[336481629,1724871049066,-500.0,0.00019611,2]
[336481630,1724871049075,-546.56,0.00019611,2]
[336481631,1724871049085,-285.044611,0.00019616,2]
[336481632,1724871049094,-163.252902,0.00019616,2]
[336481633,1724871049104,-163.252902,0.00019616,2]
[336481634,1724871049114,-390.323519,0.00019616,2]
[336481635,1724871049123,-390.323519,0.00019616,2]
[336481636,1724871049132,-151.0,0.00019616,2]
[336481637,1724871049141,-151.0,0.00019616,2]
[336481638,1724871049152,-500.0,0.00019616,2]
[336481639,1724871049162,-177.757315,0.00019616,2]
[336481640,1724871049171,-177.757315,0.00019616,2]
[336481641,1724871049181,-500.0,0.00019616,2]
[336481642,1724871049191,-500.0,0.00019616,2]
[336481643,1724871049201,-500.0,0.00019616,2]
[336481644,1724871049211,-500.0,0.00019617,2]
[336481645,1724871049221,-500.0,0.00019617,2]
[336481646,1724871049231,-500.0,0.00019617,2]
[336481647,1724871049241,-500.0,0.00019617,2]
[336481648,1724871049251,-500.0,0.00019617,2]
[336481649,1724871049260,-500.0,0.00019617,2]
[336481650,1724871049270,-616.46,0.00019617,2]
[336481651,1724871049284,-500.0,0.00019617,2]
[336481652,1724871049293,-500.0,0.00019617,2]
[336481653,1724871049303,-500.0,0.00019617,2]
[336481654,1724871049313,-500.0,0.00019617,2]
[336481655,1724871049325,-500.0,0.00019617,2]
[336481656,1724871049335,-500.0,0.00019617,2]
[336481657,1724871049344,-500.0,0.00019617,2]
[336481658,1724871049357,-500.0,0.00019617,2]
[336481659,1724871049366,-500.0,0.00019617,2]
[336481660,1724871049376,-500.0,0.00019617,2]
[336481661,1724871049386,-500.0,0.00019617,2]
[336481662,1724871049396,-500.0,0.00019617,2]
[336481663,1724871049406,-500.0,0.00019617,2]
[336481664,1724871049417,-500.0,0.00019617,2]
[336481665,1724871049426,-500.0,0.00019617,2]
[336481666,1724871049437,-500.0,0.00019617,2]
[336481667,1724871049446,-500.0,0.00019617,2]
[336481668,1724871049456,-500.0,0.00019617,2]
[336481669,1724871049466,-156.202967,0.00019617,2]
[336481670,1724871049476,-500.0,0.00019617,2]
[336481671,1724871049486,-156.202967,0.00019617,2]
[336481672,1724871049496,-348.17303219,0.00019617,2]
[336481673,1724871049506,-500.0,0.00019617,2]
[336481674,1724871049515,-500.0,0.00019617,2]
[336481675,1724871049525,-500.0,0.00019617,2]
[336481676,1724871049535,-500.0,0.00019617,2]
[336481677,1724871049545,-322.06204273,0.00019617,2]
[336481678,1724871049555,-152.87,0.00019617,2]
[336481679,1724871049564,-736.6,0.00019617,2]
[336481680,1724871049574,-342.192013,0.00019617,2]
[336481681,1724871049585,-229.176454,0.00019617,2]
[336481682,1724871049594,-342.192013,0.00019617,2]
[336481683,1724871049606,-229.176454,0.00019617,2]
[336481684,1724871049616,-500.0,0.00019617,2]
[336481685,1724871049626,-534.11,0.00019617,2]
[336481686,1724871049635,-500.0,0.00019617,2]
[336481687,1724871049645,-500.0,0.00019617,2]
[336481688,1724871049655,-500.0,0.00019617,2]
[336481689,1724871049664,-157.04,0.00019617,2]
[336481690,1724871049674,-229.060423,0.00019617,2]
[336481691,1724871049684,-625.8,0.00019617,2]
[336481692,1724871049694,-229.060423,0.00019617,2]
[336481693,1724871049703,-500.0,0.00019617,2]
[336481694,1724871049714,-500.0,0.00019617,2]
[336481695,1724871049724,-500.0,0.00019617,2]
[336481696,1724871049734,-182.010638,0.00019617,2]
[336481697,1724871049744,-182.010638,0.00019617,2]
[336481698,1724871049753,-473.0,0.00019617,2]
[336481699,1724871049763,-151.0,0.00019617,2]
[336481700,1724871049773,-151.0,0.00019617,2]
[336481701,1724871049782,-707.3,0.00019617,2]